{"text_format":"1","workbook":"xlsx","n_sheets":10,"sheets":["ВПА_Застава_СТ","ППА","Фото","Журнал торгів","queries","deal","colls","guar","legalwork","deal_doc"],"not_rendered":{"charts":0,"images":5,"macros":1,"external_links":0,"defined_names":5,"comments":0,"pivot_tables":0},"unopened":[],"bounds":{"document_bytes":16777216,"sheet_cells":100000,"rows_first":2000,"rows_last":500,"rows_between":2000,"halvings":0,"cell_chars":16384,"cell_head_chars":4096},"cells_cut":0,"cells_raw":0,"read":"whole","date_system":"1900"}

{"sheet":"ВПА_Застава_СТ","index":0,"n_rows":124,"n_cols":2,"rows_kept":124,"cut":false,"hidden":true,"merged":[[27,0,33,1],[0,0,0,1],[5,0,5,1],[6,0,12,1],[21,0,21,1],[26,0,26,1],[111,0,117,1],[42,0,42,1],[47,0,47,1],[48,0,54,1],[63,0,63,1],[68,0,68,1],[69,0,75,1],[84,0,84,1],[89,0,89,1],[90,0,96,1],[105,0,105,1],[110,0,110,1]]}
["7. Інформація про заставу***"]
["Наявність застави (так / ні)",{"$f":"deal!$AA$2","v":"так"}]
["Діє мораторій на стягнення майна (так / ні)",{"$f":"colls!#REF!","v":{"$error":"#REF!"}}]
["Номер договору застави",{"$f":"colls!#REF!","v":{"$error":"#REF!"}}]
["Тип застави*",{"$f":"colls!#REF!","v":{"$error":"#REF!"}}]
["Детальний опис застави*"]
[{"$f":"colls!#REF!","v":{"$error":"#REF!"}}]
[]
[]
[]
[]
[]
[]
["Застава реалізована (так / ні)"]
["Заставу прийнято на баланс банку (так / ні)"]
["Вартість застави на момент видачі кредиту, грн"]
["Дата останньої перевірки предмета застави*",{"$f":"IF(colls!#REF!=\"\",\"\",colls!#REF!)","v":{"$error":"#REF!"}}]
["Дата останньої оцінки",{"$f":"IF(colls!#REF!=\"\",\"\",colls!#REF!)","v":{"$error":"#REF!"}}]
["Оцінка вартості застави, грн",{"$f":"colls!#REF!","v":{"$error":"#REF!"}}]
[]
[]
["7. Інформація про заставу***"]
["Наявність застави (так / ні)",{"$f":"deal!$AA$2","v":"так"}]
["Діє мораторій на стягнення майна (так / ні)",{"$f":"IF(colls!$C$4=\"\",\"\",colls!$C$4)","v":""}]
["Номер договору застави",{"$f":"IF(colls!$D$4=\"\",\"\",colls!$D$4)","v":""}]
["Тип застави*",{"$f":"IF(colls!$E$4=\"\",\"\",colls!$E$4)","v":""}]
["Детальний опис застави*"]
[{"$f":"IF(colls!$F$4=\"\",\"\",colls!$F$4)","v":""}]
[]
[]
[]
[]
[]
[]
["Застава реалізована (так / ні)"]
["Заставу прийнято на баланс банку (так / ні)"]
["Вартість застави на момент видачі кредиту, грн"]
["Дата останньої перевірки предмета застави*",{"$f":"IF(colls!$G$4=\"\",\"\",colls!$G$4)","v":""}]
["Дата останньої оцінки",{"$f":"IF(colls!$H$4=\"\",\"\",colls!$H$4)","v":""}]
["Оцінка вартості застави, грн",{"$f":"IF(colls!$I$4=\"\",\"\",colls!$I$4)","v":""}]
[]
[]
["7. Інформація про заставу***"]
["Наявність застави (так / ні)",{"$f":"deal!$AA$2","v":"так"}]
["Діє мораторій на стягнення майна (так / ні)",{"$f":"IF(colls!$C$5=\"\",\"\",colls!$C$5)","v":""}]
["Номер договору застави",{"$f":"IF(colls!$D$5=\"\",\"\",colls!$D$5)","v":""}]
["Тип застави*",{"$f":"IF(colls!$E$5=\"\",\"\",colls!$E$5)","v":""}]
["Детальний опис застави*"]
[{"$f":"IF(colls!$F$5=\"\",\"\",colls!$F$5)","v":""}]
[]
[]
[]
[]
[]
[]
["Застава реалізована (так / ні)"]
["Заставу прийнято на баланс банку (так / ні)"]
["Вартість застави на момент видачі кредиту, грн"]
["Дата останньої перевірки предмета застави*",{"$f":"IF(colls!$G$5=\"\",\"\",colls!$G$5)","v":""}]
["Дата останньої оцінки",{"$f":"IF(colls!$H$5=\"\",\"\",colls!$H$5)","v":""}]
["Оцінка вартості застави, грн",{"$f":"IF(colls!$I$5=\"\",\"\",colls!$I$5)","v":""}]
[]
[]
["7. Інформація про заставу***"]
["Наявність застави (так / ні)",{"$f":"deal!$AA$2","v":"так"}]
["Діє мораторій на стягнення майна (так / ні)",{"$f":"IF(colls!$C$6=\"\",\"\",colls!$C$6)","v":""}]
["Номер договору застави",{"$f":"IF(colls!$D$6=\"\",\"\",colls!$D$6)","v":""}]
["Тип застави*",{"$f":"IF(colls!$E$6=\"\",\"\",colls!$E$6)","v":""}]
["Детальний опис застави*"]
[{"$f":"IF(colls!$F$6=\"\",\"\",colls!$F$6)","v":""}]
[]
[]
[]
[]
[]
[]
["Застава реалізована (так / ні)"]
["Заставу прийнято на баланс банку (так / ні)"]
["Вартість застави на момент видачі кредиту, грн"]
["Дата останньої перевірки предмета застави*",{"$f":"IF(colls!$G$6=\"\",\"\",colls!$G$6)","v":""}]
["Дата останньої оцінки",{"$f":"IF(colls!$H$6=\"\",\"\",colls!$H$6)","v":""}]
["Оцінка вартості застави, грн",{"$f":"IF(colls!$I$6=\"\",\"\",colls!$I$6)","v":""}]
[]
[]
["7. Інформація про заставу***"]
["Наявність застави (так / ні)",{"$f":"deal!$AA$2","v":"так"}]
["Діє мораторій на стягнення майна (так / ні)",{"$f":"IF(colls!$C$7=\"\",\"\",colls!$C$7)","v":""}]
["Номер договору застави",{"$f":"IF(colls!$D$7=\"\",\"\",colls!$D$7)","v":""}]
["Тип застави*",{"$f":"IF(colls!$E$7=\"\",\"\",colls!$E$7)","v":""}]
["Детальний опис застави*"]
[{"$f":"IF(colls!$F$7=\"\",\"\",colls!$F$7)","v":""}]
[]
[]
[]
[]
[]
[]
["Застава реалізована (так / ні)"]
["Заставу прийнято на баланс банку (так / ні)"]
["Вартість застави на момент видачі кредиту, грн"]
["Дата останньої перевірки предмета застави*",{"$f":"IF(colls!$G$7=\"\",\"\",colls!$G$7)","v":""}]
["Дата останньої оцінки",{"$f":"IF(colls!$H$7=\"\",\"\",colls!$H$7)","v":""}]
["Оцінка вартості застави, грн",{"$f":"IF(colls!$I$7=\"\",\"\",colls!$I$7)","v":""}]
[]
[]
["7. Інформація про заставу***"]
["Наявність застави (так / ні)",{"$f":"deal!$AA$2","v":"так"}]
["Діє мораторій на стягнення майна (так / ні)",{"$f":"IF(colls!$C$8=\"\",\"\",colls!$C$8)","v":""}]
["Номер договору застави",{"$f":"IF(colls!$D$8=\"\",\"\",colls!$D$8)","v":""}]
["Тип застави*",{"$f":"IF(colls!$E$8=\"\",\"\",colls!$E$8)","v":""}]
["Детальний опис застави*"]
[{"$f":"IF(colls!$F$8=\"\",\"\",colls!$F$8)","v":""}]
[]
[]
[]
[]
[]
[]
["Застава реалізована (так / ні)"]
["Заставу прийнято на баланс банку (так / ні)"]
["Вартість застави на момент видачі кредиту, грн"]
["Дата останньої перевірки предмета застави*",{"$f":"IF(colls!$G$8=\"\",\"\",colls!$G$8)","v":""}]
["Дата останньої оцінки",{"$f":"IF(colls!$H$8=\"\",\"\",colls!$H$8)","v":""}]
["Оцінка вартості застави, грн",{"$f":"IF(colls!$I$8=\"\",\"\",colls!$I$8)","v":""}]

{"sheet":"ППА","index":1,"n_rows":27,"n_cols":8,"rows_kept":27,"cut":false,"hidden":false,"merged":[[22,6,22,7],[23,6,23,7],[19,3,19,4],[25,3,26,3],[25,4,26,4],[23,3,23,4],[0,0,0,7],[4,0,4,1],[4,6,4,7],[6,6,6,7],[7,6,21,7],[19,0,19,1],[4,3,4,4],[10,3,10,4],[6,4,7,4],[6,3,7,3],[11,3,15,4]]}
["Публічний паспорт активу (права вимоги фізичних осіб – індивідуальні позичальники)"]
[]
["Дата формування","2017-12-01"]
[]
["1. Інформація про кредит ",null,null,"3. Інформація про заставу",null,null,"6. Претензійно-позовна робота та примусове стягнення"]
["Назва банку","ПУАТ «ФІДОБАНК»",null,"Наявність застави (так / ні)","так",null,"Поточна стадія претензійно-позовної роботи","виконавчий документ передано до ДВС"]
["МФО банку","300175",null,"Діє закон про мораторій на стягнення майна (так / ні)","ні",null,"Опис претензійно-позовної роботи"]
["Номер кредитного договору","053-В/52",null,null,null,null,"Детальну інформацію буде надано після підписання договору про нерозголошення конфіденційної інформації"]
["Дата отримання кредиту","2008-05-21",null,"Номер договору застави","б/н"]
["Дата погашення кредиту","2023-05-19",null,"Тип застави","житловий будинок"]
["Валюта кредиту",840,null,"Опис застави"]
["Сума видачі (у валюті кредиту)",500000,null,"жиловий будинок, за адресою: Дніпропетровська обл., Дніпропетровський р-н, смт Кіровське, вул. Комсомольська, загальною площею 349,9 кв. м, житловою площею 184,8 кв.м., що розташований на земельній ділянці, площею 0,1173 га, цільове використання - для будівництва і обслуговування житлового будинку, господарських будівель і споруд, "]
["Ставка відсотків",12.5]
["Ставка комісій",""]
["Тип кредитного продукту","Заставний"]
["Цільове призначення","споживче кредитування під заставу нерухомості"]
["Регіон видачі (область)","Дніпропетровська область",null,"Застава реалізована (так / ні)","ні"]
["Зона АТО або Крим","Інше",null,"Вартість застави на момент видачі кредиту, грн",3775915.3]
[]
["2. Залишок заборгованості на дату формування",null,null,"4. Інформація про поручителя"]
["Загальний залишок заборгованості (без штрафів та пені), грн ",15772721.91,null,"Наявність поручителя (так / ні)","так"]
["Залишок по тілу кредиту, грн",13506948.52,null,"Вид поруки (майнова / фінансова)","фінансова"]
["Залишок по процентам, грн",2265773.39]
["Залишок по комісіям, грн",0,null,"5. Додаткова інформація",null,null,"7. Оцінка вартості кредиту"]
["Залишок по пеням і штрафам, грн","",null,"Смерть боржника (так / ні)","ні",null,"Назва компанії оцінщика","ТОВ «Верітас Проперті Менеджмент»"]
["Залишок заборгованості у валюті кредиту (без штрафів та пені)",583873.65,null,"Інша інформація та примітки","",null,"Дата оцінки вартості кредиту","2016-11-01"]
["Дата останнього платежу","інформація відсутня",null,null,null,null,"Оціночна вартість кредиту, грн",2482026.92]

{"sheet":"Фото","index":2,"n_rows":0,"n_cols":0,"rows_kept":0,"cut":false,"hidden":false,"merged":[]}

{"sheet":"Журнал торгів","index":3,"n_rows":10,"n_cols":6,"rows_kept":10,"cut":false,"hidden":false,"merged":[[0,0,0,5]]}
["Журнал торгів"]
["№","Дата проведення","Торгуюча організація","Початкова вартість, грн","Ціна продажу, грн","Коментар"]
[1," 17.05.2017","Товариство з обмеженою відповідальністю «ДЕРЖЗАКУПІВЛІ.ОНЛАЙН» ",15860176.84]
[2," 31.05.2017","Товариство з обмеженою відповідальністю «ДЕРЖЗАКУПІВЛІ.ОНЛАЙН» ",14274159.16]
[3,"2017-06-15","Товариство з обмеженою відповідальністю «ДЕРЖЗАКУПІВЛІ.ОНЛАЙН» ",12688141.470000001]
[4," 30.06.2017","Товариство з обмеженою відповідальністю «ДЕРЖЗАКУПІВЛІ.ОНЛАЙН» ",11102123.789999999]
[5," 14.07.2017","Товариство з обмеженою відповідальністю «ДЕРЖЗАКУПІВЛІ.ОНЛАЙН» ",9516106.0999999996]
[6," 28.07.2017","Товариство з обмеженою відповідальністю «ДЕРЖЗАКУПІВЛІ.ОНЛАЙН» ",7930088.4199999999]
[7,"2017-08-11","Товариство з обмеженою відповідальністю «ДЕРЖЗАКУПІВЛІ.ОНЛАЙН» ",6344070.7400000002]
[8,"2017-08-28","Товариство з обмеженою відповідальністю «ДЕРЖЗАКУПІВЛІ.ОНЛАЙН» ",4758053.05]

{"sheet":"queries","index":4,"n_rows":6,"n_cols":2,"rows_kept":6,"cut":false,"hidden":true,"merged":[]}
["FIDO_HD.deals","select * from risk.risk_viw_deal_passport t where t.deal_b2_id=$deal_id$"]
["FIDO_HD.colls","select * from risk.risk_viw_coll_passport t where t.DEAL_B2_ID=$deal_id$"]
["FIDO_HD.guar","select * from risk.risk_viw_guar_passport t where t.DEAL_B2_ID=$deal_id$"]
["FIDO_HD.legalwork","select * from risk.risk_viw_passport_legalwork_ag t where t.DEAL_B2_ID=$deal_id$"]
["FIDO_HD.log","insert into risk.risk_passport_request_log(deal_b2_id, user_login) values($deal_id$,'$user_login$')"]
["FIDO_HD.deal_docs","select * from risk.risk_viw_passport_deal_doc t where t.DEAL_B2_ID=$deal_id$"]

{"sheet":"deal","index":5,"n_rows":2,"n_cols":42,"rows_kept":2,"cut":false,"hidden":true,"merged":[]}
["DEAL_B2_ID","DEAL_ID","ARCDATE","1","2","3","4","5","6","7","8","10","11","12","13","15","16","17","18","19","20","33","34","35","36","37","41","52","EST_COMPANY_NAME","EST_AMOUNT","EST_DATE","REST_AMOUNT_EST","REST_AMOUNT_LIQ","LIQ_AMOUNT","LIQ_DATE","LAST_PAYM_DATE","LAST_PAYM_AMOUNT","CURR_YEAR_PAYM_AMOUNT","PREV_YEAR_PAYM_AMOUNT","PAYM_AMOUNT_TOTAL","FEE_RATE","NBU_COLL"]
[301616,357162,"2017-03-01","ПУАТ «ФІДОБАНК»","300175","053-В/52","2008-05-21","2023-05-19",840,500000,0,"Заставний","Споживчий","Дніпропетровська область","Інше",15860176.84,0,0,0,0,null,0,"ДАНЕЙКІНА ТЕТЯНА ЛЕОНІДІВНА","2734710460","м. СЕЛИЩЕ КІРОВСЬКЕ, вул. НЕКРАСОВА, буд. 46 Є","обл. ДНІПРОПЕТРОВСЬКА, р-н ДНІПРОПЕТРОВСЬКИЙ, м. СЕЛИЩЕ КІРОВСЬКЕ, вул. НЕКРАСОВА, буд. 46 Є","так","так","ТОВ «Верітас Проперті Менеджмент»",2482026.92,"2016-11-01",14886413.970000001,14886413.970000001,2482026.92,"2016-11-01","2015-10-30",11451978.529999999,0,0,11655936.73,0,"Ні"]

{"sheet":"colls","index":6,"n_rows":3,"n_cols":14,"rows_kept":3,"cut":false,"hidden":true,"merged":[]}
["DEAL_ID","DEAL_B2_ID","42","43","44","45","49","50","51","COLL_DEAL_ID","COLL_DEAL_B2_ID","ARCDATE","DEAL_NO","SIMPLE_CODE"]
[357162,301616,"Ні",301620,"Земельні ділянки","Земельна ділянка; Дніпропетровська обл., Дніпропетровський район, смт.Кіровське, вул.Комсомольська 255 (0,1173 га)","2014-07-17","2015-05-07",1786050,357166,301620,"2017-03-01","053-В/52","053-В/52_301620"]
[357162,301616,"Так",301618,"Нерухоме майно, що належить до житлового фонду","Житловий будинок; Дніпропетровська обл., Дніпропетровський район, смт.Кіровське, вул.Комсомольська 255 (349,9 кв.м./184,8 кв.м.)","2014-07-17","2015-05-28",3719050,357164,301618,"2017-03-01","053-В/52","053-В/52_301618"]

{"sheet":"guar","index":7,"n_rows":2,"n_cols":15,"rows_kept":2,"cut":false,"hidden":true,"merged":[]}
["DEAL_ID","DEAL_B2_ID","COLL_DEAL_ID","COLL_DEAL_B2_ID","43","45","53","54","55","56","57","58","59","ARCDATE","SIMPLE_CODE"]
[357162,301616,357165,301619,301619,"Порука з Данейкіним В.В.","Прості гарантії інших клієнтів","Данейкін Вадим Валерійович","2734710460","м. СЕЛИЩЕ КІРОВСЬКЕ, вул. НЕКРАСОВА, буд. 45 Е","обл. ДНІПРОПЕТРОВСЬКА, р-н ДНІПРОПЕТРОВСЬКИЙ, м. СЕЛИЩЕ КІРОВСЬКЕ, вул. НЕКРАСОВА, буд. 45 Е",null,"чоловік","2017-03-01","053-В/52_301619"]

{"sheet":"legalwork","index":8,"n_rows":2,"n_cols":15,"rows_kept":2,"cut":false,"hidden":true,"merged":[]}
["ARCDATE","DEAL_ID","DEAL_B2_ID","DEAL_NO","COLL_DEAL_ID","COLL_DEAL_B2_ID","LIMITATION_PERIOD_DATE","CUR_STAGE","STAGE_DESC","LEGAL_OPINION","PRE_TRIAL_AGR_FLAG","PRE_TRIAL_AGR_DESC","INTERNAL_DRS_WORK","EXTERNAL_DRS_WORK","SIMPLE_CODE"]
["2017-03-01 00:00:00 | 2017-03-01 00:00:00 | 2017-03-01 00:00:00 | 2017-03-01 00:00:00 | 2017-03-01 00:00:00 | 2017-03-01 00:00:00 | 2017-03-01 00:00:00 | 2017-03-01 00:00:00 | 2017-03-01 00:00:00","357162 | 357162 | 357162 | 357162 | 357162 | 357162 | 357162 | 357162 | 357162",301616,"053-В/52 | 053-В/52 | 053-В/52 | 053-В/52 | 053-В/52 | 053-В/52 | 053-В/52 | 053-В/52 | 053-В/52","357164 | 357164 | 357164 | 357165 | 357165 | 357165 | 357166 | 357166 | 357166","301618 | 301618 | 301618 | 301619 | 301619 | 301619 | 301620 | 301620 | 301620","301618: 19.05.2026 | 301618: 19.05.2026 | 301618: 19.05.2026 | 301619: 19.05.2026 | 301619: 19.05.2026 | 301619: 19.05.2026 | 301620: 19.05.2026 | 301620: 19.05.2026 | 301620: 19.05.2026","301618: Справа у виконавчій службі | 301618: Справа у виконавчій службі | 301618: Справа у виконавчій службі | 301619: Справа у виконавчій службі | 301619: Справа у виконавчій службі | 301619: Справа у виконавчій службі | 301620: Справа у виконавчій службі | 301620: Справа у виконавчій службі | 301620: Справа у виконавчій службі","301618: рішення набрало законнної сили | 301618: рішення набрало законнної сили | 301618: рішення набрало законнної сили | 301619: рішення набрало законнної сили | 301619: рішення набрало законнної сили | 301619: рішення набрало законнної сили | 301620: рішення набрало законнної сили | 301620: рішення набрало законнної сили | 301620: рішення набрало законнної сили","301618: низький | 301618: низький | 301618: низький | 301619: низький | 301619: низький | 301619: низький | 301620: низький | 301620: низький | 301620: низький","301618: ні | 301618: ні | 301618: ні | 301619: ні | 301619: ні | 301619: ні | 301620: ні | 301620: ні | 301620: ні","301618: ні | 301618: ні | 301618: ні | 301619: ні | 301619: ні | 301619: ні | 301620: ні | 301620: ні | 301620: ні","301618: так | 301618: так | 301618: так | 301619: так | 301619: так | 301619: так | 301620: так | 301620: так | 301620: так","301618: відсутня | 301618: відсутня | 301618: відсутня | 301619: відсутня | 301619: відсутня | 301619: відсутня | 301620: відсутня | 301620: відсутня | 301620: відсутня","053-В/52_301618 | 053-В/52_301618 | 053-В/52_301618 | 053-В/52_301619 | 053-В/52_301619 | 053-В/52_301619 | 053-В/52_301620 | 053-В/52_301620 | 053-В/52_301620"]

{"sheet":"deal_doc","index":9,"n_rows":4,"n_cols":8,"rows_kept":4,"cut":false,"hidden":true,"merged":[]}
["DEAL_B2_ID","DEAL_ID","CREDIT_CONTRACT","COLL_CONTRACT","GUARANTEE_CONTRACT","SPOUSE_AGR","CREDIT_STATEMENT","BORROWERS_PERMIT"]
[301616,357162,"так",null,"так","ні","так","ні"]
[301616,357162,"так","ні",null,"ні","так","ні"]
[301616,357162,"так","ні",null,"ні","так","ні"]